[Event "Titled Tuesday Blitz February 15 Early 2022"]
[White "Sokolovsky, Yahli"]
[Black "Sarkar, Justin"]
[WhiteFideId "2820242"]
[BlackFideId "2010011"]
[WhiteElo "1770"]
[BlackElo "2038"]
[Result "1-0"]
[Round "02"]
[TimeControl "180+1"]
[Date "2022.02.15"]
[WhiteClock "0:00:26"]
[BlackClock "0:00:01"]

1. b3 {[%clk 0:02:44]}  b5 {[%clk 0:02:57]} 2. Bb2 {[%clk 0:02:44]}  Bb7 {[%clk 0:02:57]} 3. e3 {[%clk 0:02:44]}  a6 {[%clk 0:02:54]} 4. Nf3 {[%clk 0:02:44]}  Nf6 {[%clk 0:02:52]} 5. d4 {[%clk 0:02:44]}  e6 {[%clk 0:02:49]} 6. Bd3 {[%clk 0:02:45]}  c5 {[%clk 0:02:42]} 7. O-O {[%clk 0:02:38]}  d5 {[%clk 0:02:38]} 8. Ne5 {[%clk 0:02:36]}  c4 {[%clk 0:02:31]} 9. Be2 {[%clk 0:02:35]}  Nbd7 {[%clk 0:02:27]} 10. f4 {[%clk 0:02:35]}  Ne4 {[%clk 0:02:15]} 11. Nc3 {[%clk 0:02:29]}  Ndf6 {[%clk 0:01:37]} 12. a4 {[%clk 0:02:26]}  Nxc3 {[%clk 0:01:30]} 13. Bxc3 {[%clk 0:02:26]}  Ne4 {[%clk 0:01:30]} 14. Be1 {[%clk 0:02:23]}  Bd6 {[%clk 0:01:24]} 15. Bf3 {[%clk 0:02:10]}  O-O {[%clk 0:01:13]} 16. Bxe4 {[%clk 0:02:06]}  dxe4 {[%clk 0:01:11]} 17. bxc4 {[%clk 0:02:07]}  f6 {[%clk 0:00:43]} 18. Ng4 {[%clk 0:01:58]}  bxc4 {[%clk 0:00:39]} 19. Rb1 {[%clk 0:01:55]}  Bd5 {[%clk 0:00:38]} 20. Bb4 {[%clk 0:01:44]}  Bxb4 {[%clk 0:00:22]} 21. Rxb4 {[%clk 0:01:45]}  c3 {[%clk 0:00:22]} 22. Qa1 {[%clk 0:01:40]}  Qc7 {[%clk 0:00:19]} 23. a5 {[%clk 0:01:35]}  h5 {[%clk 0:00:12]} 24. Nf2 {[%clk 0:01:35]}  e5 {[%clk 0:00:12]} 25. g3 {[%clk 0:01:21]}  exf4 {[%clk 0:00:07]} 26. gxf4 {[%clk 0:01:20]}  g5 {[%clk 0:00:07]} 27. Nd1 {[%clk 0:00:58]}  Rac8 {[%clk 0:00:03]} 28. Rb6 {[%clk 0:00:52]}  Kh8 {[%clk 0:00:02]} 29. Qa3 {[%clk 0:00:42]}  Rg8 {[%clk 0:00:02]} 30. Kh1 {[%clk 0:00:38]}  gxf4 {[%clk 0:00:02]} 31. Qd6 {[%clk 0:00:25]}  Qxd6 {[%clk 0:00:01]} 32. Rxd6 {[%clk 0:00:26]}  f3 {[%clk 0:00:01]} 33. Rxd5 {[%clk 0:00:26]}  Rg2 {[%clk 0:00:01]} 34. Rxh5+ {[%clk 0:00:26]}  Kg7 {[%clk 0:00:01]} 35. Nf2 {[%clk 0:00:26]} 1-0


[Site "https://www.chess.com"]

[Event "Titled Tuesday Blitz February 15 Early 2022"]
[White "Stefanov, Plamen"]
[Black "Kirillov, Dmitry"]
[WhiteFideId "2900980"]
[BlackFideId "34180572"]
[WhiteElo "2137"]
[BlackElo "2076"]
[Result "0-1"]
[Round "02"]
[TimeControl "180+1"]
[Date "2022.02.15"]
[WhiteClock "0:00:06"]
[BlackClock "0:00:07"]

1. e4 {[%clk 0:02:54]}  c5 {[%clk 0:02:59]} 2. Nf3 {[%clk 0:02:54]}  e6 {[%clk 0:03:00]} 3. c3 {[%clk 0:02:54]}  d5 {[%clk 0:03:00]} 4. exd5 {[%clk 0:02:53]}  Qxd5 {[%clk 0:03:01]} 5. d4 {[%clk 0:02:51]}  Nf6 {[%clk 0:03:01]} 6. Be2 {[%clk 0:02:43]}  Be7 {[%clk 0:02:59]} 7. O-O {[%clk 0:02:41]}  cxd4 {[%clk 0:02:58]} 8. cxd4 {[%clk 0:02:41]}  O-O {[%clk 0:02:55]} 9. Nc3 {[%clk 0:02:41]}  Qd6 {[%clk 0:02:55]} 10. g3 {[%clk 0:02:34]}  Nc6 {[%clk 0:02:33]} 11. Bf4 {[%clk 0:02:33]}  Qd8 {[%clk 0:02:33]} 12. h4 {[%clk 0:02:28]}  b6 {[%clk 0:02:29]} 13. Be5 {[%clk 0:01:49]}  Bb7 {[%clk 0:02:09]} 14. Ng5 {[%clk 0:01:48]}  h6 {[%clk 0:01:47]} 15. Nh3 {[%clk 0:01:27]}  Bd6 {[%clk 0:01:28]} 16. Bf3 {[%clk 0:01:24]}  Rb8 {[%clk 0:01:14]} 17. Qe2 {[%clk 0:01:12]}  Nb4 {[%clk 0:01:00]} 18. Bxb7 {[%clk 0:01:10]}  Rxb7 {[%clk 0:01:01]} 19. Rfd1 {[%clk 0:01:02]}  Nbd5 {[%clk 0:00:55]} 20. Qa6 {[%clk 0:00:53]}  Rd7 {[%clk 0:00:25]} 21. Bxd6 {[%clk 0:00:43]}  Rxd6 {[%clk 0:00:22]} 22. Qxa7 {[%clk 0:00:43]}  Nxc3 {[%clk 0:00:10]} 23. bxc3 {[%clk 0:00:42]}  Qc8 {[%clk 0:00:11]} 24. Qa3 {[%clk 0:00:41]}  Rc6 {[%clk 0:00:08]} 25. Rdc1 {[%clk 0:00:40]}  Nd5 {[%clk 0:00:09]} 26. c4 {[%clk 0:00:37]}  Rxc4 {[%clk 0:00:09]} 27. Qb2 {[%clk 0:00:27]}  Qc6 {[%clk 0:00:07]} 28. Rxc4 {[%clk 0:00:23]}  Qxc4 {[%clk 0:00:08]} 29. Rc1 {[%clk 0:00:23]}  Qd3 {[%clk 0:00:07]} 30. Kg2 {[%clk 0:00:16]}  Ra8 {[%clk 0:00:08]} 31. Ng1 {[%clk 0:00:13]}  Qe4+ {[%clk 0:00:08]} 32. f3 {[%clk 0:00:11]}  Qd3 {[%clk 0:00:08]} 33. Nh3 {[%clk 0:00:06]}  Ne3+ {[%clk 0:00:07]} 34. Kh2 {[%clk 0:00:07]}  Nf5 {[%clk 0:00:06]} 35. Kg2 {[%clk 0:00:06]}  Nxd4 {[%clk 0:00:06]} 36. Nf2 {[%clk 0:00:05]}  Qxf3+ {[%clk 0:00:06]} 37. Kh2 {[%clk 0:00:06]}  Ne2 {[%clk 0:00:05]} 38. Qb3 {[%clk 0:00:04]}  Qxb3 {[%clk 0:00:03]} 39. axb3 {[%clk 0:00:04]}  Nxc1 {[%clk 0:00:04]} 40. Ne4 {[%clk 0:00:04]}  Nxb3 {[%clk 0:00:05]} 41. Nd6 {[%clk 0:00:04]}  Nc5 {[%clk 0:00:05]} 42. Nb7 {[%clk 0:00:05]}  Rb8 {[%clk 0:00:06]} 43. Nxc5 {[%clk 0:00:06]}  bxc5 {[%clk 0:00:07]} 0-1


[Site "https://www.chess.com"]

[Event "Titled Tuesday Blitz February 15 Early 2022"]
[White "Sychev, Klementy"]
[Black "Bures, Vit"]
[WhiteFideId "4114060"]
[BlackFideId "309052"]
[WhiteElo "2564"]
[BlackElo "2118"]
[Result "1-0"]
[Round "02"]
[TimeControl "180+1"]
[Date "2022.02.15"]
[WhiteClock "0:01:41"]
[BlackClock "0:00:32"]

1. g3 {[%clk 0:02:55]}  d5 {[%clk 0:02:59]} 2. Bg2 {[%clk 0:02:55]}  Nf6 {[%clk 0:02:59]} 3. d3 {[%clk 0:02:54]}  e5 {[%clk 0:02:57]} 4. Nf3 {[%clk 0:02:54]}  Nc6 {[%clk 0:02:56]} 5. O-O {[%clk 0:02:53]}  Be7 {[%clk 0:02:54]} 6. Nc3 {[%clk 0:02:50]}  d4 {[%clk 0:02:53]} 7. Ne4 {[%clk 0:02:49]}  Nxe4 {[%clk 0:02:53]} 8. dxe4 {[%clk 0:02:49]}  Be6 {[%clk 0:02:49]} 9. e3 {[%clk 0:02:49]}  Bc4 {[%clk 0:02:41]} 10. Re1 {[%clk 0:02:47]}  d3 {[%clk 0:02:29]} 11. Bf1 {[%clk 0:02:38]}  Nb4 {[%clk 0:02:21]} 12. Nxe5 {[%clk 0:02:37]}  Nxc2 {[%clk 0:02:02]} 13. Nxc4 {[%clk 0:02:35]}  Nxa1 {[%clk 0:02:01]} 14. Bxd3 {[%clk 0:02:34]}  Bb4 {[%clk 0:01:58]} 15. Rf1 {[%clk 0:02:28]}  O-O {[%clk 0:01:53]} 16. Qe2 {[%clk 0:02:25]}  Qd7 {[%clk 0:01:15]} 17. e5 {[%clk 0:02:22]}  Rad8 {[%clk 0:01:06]} 18. Be4 {[%clk 0:02:22]}  b5 {[%clk 0:01:01]} 19. Na3 {[%clk 0:02:21]}  a6 {[%clk 0:00:47]} 20. b3 {[%clk 0:02:15]}  Qe7 {[%clk 0:00:45]} 21. Nc2 {[%clk 0:02:00]}  Nxc2 {[%clk 0:00:43]} 22. Qxc2 {[%clk 0:01:59]}  Qxe5 {[%clk 0:00:42]} 23. Bxh7+ {[%clk 0:01:58]}  Kh8 {[%clk 0:00:41]} 24. Be4 {[%clk 0:01:52]}  Qc3 {[%clk 0:00:37]} 25. Qe2 {[%clk 0:01:49]}  c5 {[%clk 0:00:32]} 26. Qh5+ {[%clk 0:01:41]} 1-0


[Site "https://www.chess.com"]

[Event "Titled Tuesday Blitz February 15 Early 2022"]
[White "Tanenbaum, Zachary"]
[Black "Iljin, Timofey"]
[WhiteFideId "2060850"]
[BlackFideId "14110180"]
[WhiteElo "2168"]
[BlackElo "2396"]
[Result "0-1"]
[Round "02"]
[TimeControl "180+1"]
[Date "2022.02.15"]
[WhiteClock "0:00:06"]
[BlackClock "0:00:07"]

1. e4 {[%clk 0:02:59]}  e5 {[%clk 0:03:00]} 2. Nf3 {[%clk 0:02:58]}  Nc6 {[%clk 0:03:00]} 3. Bc4 {[%clk 0:02:57]}  Nf6 {[%clk 0:03:00]} 4. d3 {[%clk 0:02:57]}  d5 {[%clk 0:02:59]} 5. exd5 {[%clk 0:02:57]}  Nxd5 {[%clk 0:03:00]} 6. O-O {[%clk 0:02:57]}  Bc5 {[%clk 0:03:01]} 7. Re1 {[%clk 0:02:57]}  O-O {[%clk 0:03:01]} 8. Nxe5 {[%clk 0:02:56]}  Nxe5 {[%clk 0:03:01]} 9. Rxe5 {[%clk 0:02:56]}  Bxf2+ {[%clk 0:03:02]} 10. Kxf2 {[%clk 0:02:56]}  Qf6+ {[%clk 0:03:02]} 11. Qf3 {[%clk 0:02:56]}  Qxe5 {[%clk 0:03:02]} 12. Bxd5 {[%clk 0:02:53]}  c6 {[%clk 0:03:02]} 13. Bb3 {[%clk 0:02:50]}  Qxh2 {[%clk 0:02:58]} 14. Bf4 {[%clk 0:02:39]}  Qh4+ {[%clk 0:02:58]} 15. Kg1 {[%clk 0:02:16]}  Be6 {[%clk 0:02:19]} 16. Nc3 {[%clk 0:02:06]}  Rfe8 {[%clk 0:02:14]} 17. Rf1 {[%clk 0:02:00]}  Bxb3 {[%clk 0:01:58]} 18. axb3 {[%clk 0:02:00]}  Re6 {[%clk 0:01:53]} 19. Ne4 {[%clk 0:01:45]}  Qe7 {[%clk 0:01:34]} 20. Bd2 {[%clk 0:00:38]}  Rf8 {[%clk 0:01:07]} 21. Bc3 {[%clk 0:00:35]}  f5 {[%clk 0:01:06]} 22. Ng3 {[%clk 0:00:35]}  f4 {[%clk 0:00:36]} 23. Nh5 {[%clk 0:00:19]}  Rg6 {[%clk 0:00:34]} 24. Nxf4 {[%clk 0:00:18]}  Rh6 {[%clk 0:00:25]} 25. Re1 {[%clk 0:00:12]}  Qh4 {[%clk 0:00:23]} 26. Re4 {[%clk 0:00:11]}  Qh1+ {[%clk 0:00:15]} 27. Kf2 {[%clk 0:00:12]}  Qc1 {[%clk 0:00:15]} 28. Qe2 {[%clk 0:00:10]}  Rxf4+ {[%clk 0:00:15]} 29. Rxf4 {[%clk 0:00:10]}  Qxf4+ {[%clk 0:00:16]} 30. Kg1 {[%clk 0:00:10]}  Qh2+ {[%clk 0:00:15]} 31. Kf2 {[%clk 0:00:10]}  Qh4+ {[%clk 0:00:15]} 32. Kg1 {[%clk 0:00:10]}  Qd8 {[%clk 0:00:10]} 33. Qe5 {[%clk 0:00:09]}  Rf6 {[%clk 0:00:07]} 34. Qe3 {[%clk 0:00:09]}  Rf7 {[%clk 0:00:07]} 35. Qxa7 {[%clk 0:00:08]}  b5 {[%clk 0:00:05]} 36. Qc5 {[%clk 0:00:08]}  Qd7 {[%clk 0:00:04]} 37. b4 {[%clk 0:00:07]}  h6 {[%clk 0:00:05]} 38. Qe5 {[%clk 0:00:07]}  Qf5 {[%clk 0:00:05]} 39. Qe8+ {[%clk 0:00:07]}  Kh7 {[%clk 0:00:05]} 40. Qxc6 {[%clk 0:00:07]}  Qf2+ {[%clk 0:00:04]} 41. Kh2 {[%clk 0:00:07]}  Rf5 {[%clk 0:00:04]} 42. Qe4 {[%clk 0:00:06]}  Kh8 {[%clk 0:00:02]} 43. Qe8+ {[%clk 0:00:06]}  Kh7 {[%clk 0:00:03]} 44. Qe4 {[%clk 0:00:06]}  Kh8 {[%clk 0:00:03]} 45. Qe8+ {[%clk 0:00:03]}  Rf8 {[%clk 0:00:04]} 46. Qe5 {[%clk 0:00:03]}  Qf4+ {[%clk 0:00:04]} 47. Qxf4 {[%clk 0:00:03]}  Rxf4 {[%clk 0:00:05]} 48. Kg3 {[%clk 0:00:04]}  Rf7 {[%clk 0:00:05]} 49. d4 {[%clk 0:00:04]}  Kh7 {[%clk 0:00:05]} 50. Bd2 {[%clk 0:00:03]}  Kg6 {[%clk 0:00:05]} 51. Bf4 {[%clk 0:00:03]}  Kf5 {[%clk 0:00:05]} 52. Kf3 {[%clk 0:00:03]}  g5 {[%clk 0:00:05]} 53. Be5 {[%clk 0:00:03]}  h5 {[%clk 0:00:05]} 54. Ke3 {[%clk 0:00:03]}  Kg4 {[%clk 0:00:05]} 55. d5 {[%clk 0:00:03]}  Kf5 {[%clk 0:00:04]} 56. Kd4 {[%clk 0:00:03]}  Re7 {[%clk 0:00:03]} 57. Bb8 {[%clk 0:00:02]}  Re2 {[%clk 0:00:03]} 58. Kd3 {[%clk 0:00:01]}  Rxg2 {[%clk 0:00:03]} 59. b3 {[%clk 0:00:01]}  h4 {[%clk 0:00:03]} 60. c4 {[%clk 0:00:02]}  h3 {[%clk 0:00:03]} 61. c5 {[%clk 0:00:02]}  h2 {[%clk 0:00:03]} 62. Bxh2 {[%clk 0:00:03]}  Rxh2 {[%clk 0:00:04]} 63. c6 {[%clk 0:00:03]}  Rh8 {[%clk 0:00:04]} 64. Kd4 {[%clk 0:00:04]}  g4 {[%clk 0:00:04]} 65. Kc5 {[%clk 0:00:04]}  g3 {[%clk 0:00:05]} 66. d6 {[%clk 0:00:04]}  g2 {[%clk 0:00:05]} 67. d7 {[%clk 0:00:05]}  g1=Q+ {[%clk 0:00:06]} 68. Kxb5 {[%clk 0:00:06]}  Rb8+ {[%clk 0:00:05]} 69. Kc4 {[%clk 0:00:06]}  Qf1+ {[%clk 0:00:06]} 70. Kc5 {[%clk 0:00:06]}  Qf2+ {[%clk 0:00:06]} 71. Kd6 {[%clk 0:00:06]}  Qf4+ {[%clk 0:00:06]} 72. Kc5 {[%clk 0:00:06]}  Qxb4+ {[%clk 0:00:06]} 73. Kd5 {[%clk 0:00:06]}  Rb5# {[%clk 0:00:07]} 0-1


[Site "https://www.chess.com"]

[Event "Titled Tuesday Blitz February 15 Early 2022"]
[White "Tari, Aryan"]
[Black "Tarhan, Adar"]
[WhiteFideId "1510045"]
[BlackFideId "34544712"]
[WhiteElo "2567"]
[BlackElo "1802"]
[Result "1-0"]
[Round "02"]
[TimeControl "180+1"]
[Date "2022.02.15"]
[WhiteClock "0:00:48"]
[BlackClock "0:00:14"]

1. d4 {[%clk 0:03:00]}  d5 {[%clk 0:02:59]} 2. c4 {[%clk 0:02:54]}  e6 {[%clk 0:02:59]} 3. Nf3 {[%clk 0:02:54]}  Nf6 {[%clk 0:02:59]} 4. Nc3 {[%clk 0:02:50]}  Be7 {[%clk 0:02:59]} 5. Bf4 {[%clk 0:02:45]}  O-O {[%clk 0:02:51]} 6. e3 {[%clk 0:02:31]}  c5 {[%clk 0:02:47]} 7. cxd5 {[%clk 0:02:10]}  exd5 {[%clk 0:02:42]} 8. dxc5 {[%clk 0:02:03]}  Bxc5 {[%clk 0:02:36]} 9. Be2 {[%clk 0:01:54]}  Nc6 {[%clk 0:02:36]} 10. O-O {[%clk 0:01:53]}  Be6 {[%clk 0:02:35]} 11. Na4 {[%clk 0:01:52]}  Bd6 {[%clk 0:02:09]} 12. Bg3 {[%clk 0:01:52]}  Ne4 {[%clk 0:02:07]} 13. Rc1 {[%clk 0:01:51]}  Nxg3 {[%clk 0:02:05]} 14. hxg3 {[%clk 0:01:52]}  Qf6 {[%clk 0:02:04]} 15. Nc3 {[%clk 0:01:46]}  Rfd8 {[%clk 0:02:02]} 16. Qa4 {[%clk 0:01:40]}  Rac8 {[%clk 0:01:58]} 17. Rfd1 {[%clk 0:01:40]}  Ne5 {[%clk 0:01:54]} 18. Nxe5 {[%clk 0:01:25]}  Qxe5 {[%clk 0:01:40]} 19. Qxa7 {[%clk 0:01:20]}  h5 {[%clk 0:01:34]} 20. Qd4 {[%clk 0:01:17]}  Qf5 {[%clk 0:01:27]} 21. Qh4 {[%clk 0:01:09]}  g6 {[%clk 0:01:11]} 22. Bf3 {[%clk 0:01:07]}  Be5 {[%clk 0:01:00]} 23. e4 {[%clk 0:01:07]}  Qf6 {[%clk 0:00:36]} 24. Qxf6 {[%clk 0:01:07]}  Bxf6 {[%clk 0:00:36]} 25. exd5 {[%clk 0:01:08]}  Bf5 {[%clk 0:00:34]} 26. d6 {[%clk 0:00:54]}  b6 {[%clk 0:00:29]} 27. Nd5 {[%clk 0:00:51]}  Rxc1 {[%clk 0:00:25]} 28. Nxf6+ {[%clk 0:00:51]}  Kg7 {[%clk 0:00:25]} 29. Nxh5+ {[%clk 0:00:51]}  gxh5 {[%clk 0:00:26]} 30. Rxc1 {[%clk 0:00:51]}  Rxd6 {[%clk 0:00:26]} 31. Rc6 {[%clk 0:00:46]}  Rxc6 {[%clk 0:00:20]} 32. Bxc6 {[%clk 0:00:47]}  Be6 {[%clk 0:00:21]} 33. a4 {[%clk 0:00:46]}  Kg6 {[%clk 0:00:20]} 34. b4 {[%clk 0:00:46]}  Bc4 {[%clk 0:00:20]} 35. Bb7 {[%clk 0:00:45]}  Kf6 {[%clk 0:00:17]} 36. a5 {[%clk 0:00:46]}  bxa5 {[%clk 0:00:17]} 37. bxa5 {[%clk 0:00:47]}  Ke6 {[%clk 0:00:13]} 38. a6 {[%clk 0:00:48]}  Bd5 {[%clk 0:00:14]} 39. Bxd5+ {[%clk 0:00:47]}  Kxd5 {[%clk 0:00:14]} 40. a7 {[%clk 0:00:48]} 1-0


[Site "https://www.chess.com"]

[Event "Titled Tuesday Blitz February 15 Early 2022"]
[White "Tasev, Dejan"]
[Black "Mosutha, Thuso"]
[WhiteFideId "936618"]
[BlackFideId "11302550"]
[WhiteElo "2253"]
[BlackElo "2028"]
[Result "0-1"]
[Round "02"]
[TimeControl "180+1"]
[Date "2022.02.15"]
[WhiteClock "0:00:36"]
[BlackClock "0:01:39"]

1. e4 {[%clk 0:03:00]}  c5 {[%clk 0:02:59]} 2. Nf3 {[%clk 0:02:59]}  d6 {[%clk 0:03:00]} 3. Nc3 {[%clk 0:02:59]}  e6 {[%clk 0:02:59]} 4. d4 {[%clk 0:02:58]}  cxd4 {[%clk 0:03:00]} 5. Nxd4 {[%clk 0:02:59]}  Nf6 {[%clk 0:03:01]} 6. Bc4 {[%clk 0:02:59]}  a6 {[%clk 0:03:01]} 7. Bb3 {[%clk 0:02:59]}  Be7 {[%clk 0:03:01]} 8. f3 {[%clk 0:02:59]}  O-O {[%clk 0:03:01]} 9. Be3 {[%clk 0:02:59]}  Nc6 {[%clk 0:03:02]} 10. Qd2 {[%clk 0:02:59]}  Nxd4 {[%clk 0:02:52]} 11. Bxd4 {[%clk 0:02:59]}  d5 {[%clk 0:02:48]} 12. exd5 {[%clk 0:02:53]}  Nxd5 {[%clk 0:02:49]} 13. Nxd5 {[%clk 0:02:53]}  exd5 {[%clk 0:02:49]} 14. O-O-O {[%clk 0:02:47]}  Be6 {[%clk 0:02:49]} 15. Rhe1 {[%clk 0:02:45]}  a5 {[%clk 0:02:44]} 16. c3 {[%clk 0:02:36]}  a4 {[%clk 0:02:43]} 17. Bc2 {[%clk 0:02:36]}  a3 {[%clk 0:02:43]} 18. b3 {[%clk 0:02:28]}  b5 {[%clk 0:02:39]} 19. b4 {[%clk 0:02:24]}  Rc8 {[%clk 0:02:32]} 20. Qd3 {[%clk 0:02:11]}  g6 {[%clk 0:02:31]} 21. Qxb5 {[%clk 0:01:51]}  Bf6 {[%clk 0:02:29]} 22. Bc5 {[%clk 0:01:12]}  Bxc3 {[%clk 0:02:28]} 23. Rxe6 {[%clk 0:01:03]}  Bb2+ {[%clk 0:02:19]} 24. Kb1 {[%clk 0:01:03]}  fxe6 {[%clk 0:02:17]} 25. Re1 {[%clk 0:01:01]}  Qf6 {[%clk 0:01:57]} 26. Qd7 {[%clk 0:00:56]}  Rfe8 {[%clk 0:01:43]} 27. f4 {[%clk 0:00:40]}  Ba1 {[%clk 0:01:43]} 28. Re5 {[%clk 0:00:36]}  Bxe5 {[%clk 0:01:41]} 29. fxe5 {[%clk 0:00:36]}  Qf1+ {[%clk 0:01:39]} 0-1


[Site "https://www.chess.com"]

[Event "Titled Tuesday Blitz February 15 Early 2022"]
[White "Tay, Junior"]
[Black "Kozin, Yuri"]
[WhiteFideId "5800439"]
[BlackFideId "4129920"]
[WhiteElo "2216"]
[BlackElo "2539"]
[Result "0-1"]
[Round "02"]
[TimeControl "180+1"]
[Date "2022.02.15"]
[WhiteClock "0:01:54"]
[BlackClock "0:02:10"]

1. Nc3 {[%clk 0:03:00]}  c5 {[%clk 0:02:52]} 2. e4 {[%clk 0:02:59]}  e6 {[%clk 0:02:52]} 3. f4 {[%clk 0:02:58]}  a6 {[%clk 0:02:52]} 4. Nf3 {[%clk 0:02:59]}  b5 {[%clk 0:02:52]} 5. d3 {[%clk 0:02:59]}  Bb7 {[%clk 0:02:51]} 6. Be2 {[%clk 0:03:00]}  Nf6 {[%clk 0:02:51]} 7. O-O {[%clk 0:02:59]}  b4 {[%clk 0:02:51]} 8. Nb1 {[%clk 0:02:59]}  c4 {[%clk 0:02:49]} 9. e5 {[%clk 0:02:58]}  cxd3 {[%clk 0:02:49]} 10. exf6 {[%clk 0:02:54]}  dxe2 {[%clk 0:02:49]} 11. Qxe2 {[%clk 0:02:53]}  Qxf6 {[%clk 0:02:48]} 12. Nbd2 {[%clk 0:02:51]}  Bc5+ {[%clk 0:02:46]} 13. Kh1 {[%clk 0:02:50]}  O-O {[%clk 0:02:42]} 14. Ne4 {[%clk 0:02:50]}  Bxe4 {[%clk 0:02:39]} 15. Qxe4 {[%clk 0:02:49]}  Nc6 {[%clk 0:02:39]} 16. Be3 {[%clk 0:02:28]}  Bxe3 {[%clk 0:02:37]} 17. Qxe3 {[%clk 0:02:29]}  Qxb2 {[%clk 0:02:37]} 18. Ne5 {[%clk 0:02:28]}  Nxe5 {[%clk 0:02:34]} 19. fxe5 {[%clk 0:02:29]}  Qxc2 {[%clk 0:02:33]} 20. Rf3 {[%clk 0:02:22]}  Rac8 {[%clk 0:02:30]} 21. Raf1 {[%clk 0:02:21]}  Rc3 {[%clk 0:02:27]} 22. Qg5 {[%clk 0:02:19]}  Rxf3 {[%clk 0:02:25]} 23. gxf3 {[%clk 0:02:20]}  Qxa2 {[%clk 0:02:16]} 24. Rd1 {[%clk 0:02:08]}  Qe2 {[%clk 0:02:12]} 25. Rxd7 {[%clk 0:02:05]}  Qxf3+ {[%clk 0:02:12]} 26. Kg1 {[%clk 0:02:05]}  h6 {[%clk 0:02:11]} 27. Rd2 {[%clk 0:01:54]}  hxg5 {[%clk 0:02:10]} 0-1


[Site "https://www.chess.com"]

[Event "Titled Tuesday Blitz February 15 Early 2022"]
[White "Thunderbolt135"]
[Black "Martin, Lewis"]
[BlackFideId "410551"]
[WhiteElo "2745"]
[BlackElo "2145"]
[Result "1-0"]
[Round "02"]
[TimeControl "180+1"]
[Date "2022.02.15"]
[WhiteClock "0:00:24"]
[BlackClock "0:00:19"]

1. e4 {[%clk 0:03:00]}  c5 {[%clk 0:02:59]} 2. Nf3 {[%clk 0:03:01]}  d6 {[%clk 0:02:59]} 3. d4 {[%clk 0:03:01]}  cxd4 {[%clk 0:03:00]} 4. Nxd4 {[%clk 0:03:02]}  Nf6 {[%clk 0:03:01]} 5. Nc3 {[%clk 0:03:02]}  a6 {[%clk 0:03:01]} 6. Be3 {[%clk 0:03:03]}  e5 {[%clk 0:03:01]} 7. Nf3 {[%clk 0:03:03]}  Be7 {[%clk 0:03:01]} 8. Bc4 {[%clk 0:03:04]}  O-O {[%clk 0:03:01]} 9. O-O {[%clk 0:03:04]}  Nc6 {[%clk 0:02:53]} 10. Qe2 {[%clk 0:03:04]}  Be6 {[%clk 0:02:50]} 11. Bb3 {[%clk 0:03:03]}  b5 {[%clk 0:02:47]} 12. Rfd1 {[%clk 0:02:22]}  Qb8 {[%clk 0:02:40]} 13. Bg5 {[%clk 0:02:18]}  Na5 {[%clk 0:02:33]} 14. Bxf6 {[%clk 0:02:16]}  Bxf6 {[%clk 0:02:32]} 15. Nd5 {[%clk 0:01:48]}  Bxd5 {[%clk 0:02:18]} 16. Bxd5 {[%clk 0:01:44]}  Ra7 {[%clk 0:02:17]} 17. c3 {[%clk 0:01:35]}  Nc4 {[%clk 0:02:00]} 18. a4 {[%clk 0:01:04]}  Rc8 {[%clk 0:01:51]} 19. Ra2 {[%clk 0:00:52]}  Rac7 {[%clk 0:01:32]} 20. a5 {[%clk 0:00:44]}  b4 {[%clk 0:01:29]} 21. b3 {[%clk 0:00:43]}  Na3 {[%clk 0:01:24]} 22. c4 {[%clk 0:00:43]}  Rc5 {[%clk 0:01:19]} 23. Ne1 {[%clk 0:00:39]}  Rxa5 {[%clk 0:01:15]} 24. Nd3 {[%clk 0:00:39]}  Bd8 {[%clk 0:01:00]} 25. Qd2 {[%clk 0:00:32]}  Qb6 {[%clk 0:00:34]} 26. Nxb4 {[%clk 0:00:31]}  Qc5 {[%clk 0:00:26]} 27. Nc6 {[%clk 0:00:22]}  Rxc6 {[%clk 0:00:23]} 28. b4 {[%clk 0:00:22]}  Qd4 {[%clk 0:00:20]} 29. Qxd4 {[%clk 0:00:22]}  exd4 {[%clk 0:00:20]} 30. bxa5 {[%clk 0:00:21]}  Rc5 {[%clk 0:00:20]} 31. Rxa3 {[%clk 0:00:22]}  Rxa5 {[%clk 0:00:19]} 32. Rxa5 {[%clk 0:00:21]}  Bxa5 {[%clk 0:00:20]} 33. Rxd4 {[%clk 0:00:22]}  Bb6 {[%clk 0:00:21]} 34. Rd3 {[%clk 0:00:22]}  Bc5 {[%clk 0:00:22]} 35. Rb3 {[%clk 0:00:22]}  g6 {[%clk 0:00:21]} 36. Rb7 {[%clk 0:00:22]}  Kg7 {[%clk 0:00:21]} 37. Rxf7+ {[%clk 0:00:22]}  Kh6 {[%clk 0:00:22]} 38. h4 {[%clk 0:00:23]}  a5 {[%clk 0:00:21]} 39. Rf8 {[%clk 0:00:23]}  a4 {[%clk 0:00:21]} 40. Ra8 {[%clk 0:00:23]}  a3 {[%clk 0:00:22]} 41. g4 {[%clk 0:00:23]}  g5 {[%clk 0:00:22]} 42. Kg2 {[%clk 0:00:21]}  gxh4 {[%clk 0:00:22]} 43. f4 {[%clk 0:00:22]}  Bd4 {[%clk 0:00:21]} 44. Rxa3 {[%clk 0:00:21]}  Bc5 {[%clk 0:00:21]} 45. Kh3 {[%clk 0:00:21]}  Bxa3 {[%clk 0:00:20]} 46. Kxh4 {[%clk 0:00:22]}  Bb2 {[%clk 0:00:21]} 47. g5+ {[%clk 0:00:21]}  Kg7 {[%clk 0:00:21]} 48. Kh5 {[%clk 0:00:20]}  Bc1 {[%clk 0:00:21]} 49. f5 {[%clk 0:00:20]}  Bb2 {[%clk 0:00:22]} 50. f6+ {[%clk 0:00:20]}  Kf8 {[%clk 0:00:21]} 51. Kg4 {[%clk 0:00:20]}  Bc1 {[%clk 0:00:21]} 52. Kf5 {[%clk 0:00:21]}  Be3 {[%clk 0:00:21]} 53. Be6 {[%clk 0:00:19]}  Bd4 {[%clk 0:00:20]} 54. Bd5 {[%clk 0:00:18]}  Be3 {[%clk 0:00:20]} 55. Bc6 {[%clk 0:00:19]}  Bd4 {[%clk 0:00:20]} 56. Ba4 {[%clk 0:00:20]}  Be3 {[%clk 0:00:20]} 57. Bc2 {[%clk 0:00:20]}  Bd4 {[%clk 0:00:20]} 58. Bd1 {[%clk 0:00:18]}  Be3 {[%clk 0:00:20]} 59. Bh5 {[%clk 0:00:19]}  Bd4 {[%clk 0:00:21]} 60. Kg4 {[%clk 0:00:16]}  Be3 {[%clk 0:00:20]} 61. Kf5 {[%clk 0:00:17]}  Bd4 {[%clk 0:00:21]} 62. Be2 {[%clk 0:00:18]}  Be3 {[%clk 0:00:21]} 63. Kg4 {[%clk 0:00:18]}  Bd4 {[%clk 0:00:21]} 64. Kf4 {[%clk 0:00:19]}  Be5+ {[%clk 0:00:20]} 65. Kf5 {[%clk 0:00:19]}  Bd4 {[%clk 0:00:21]} 66. Ke6 {[%clk 0:00:20]}  Be3 {[%clk 0:00:20]} 67. Kxd6 {[%clk 0:00:20]}  Bxg5 {[%clk 0:00:20]} 68. e5 {[%clk 0:00:21]}  Bf4 {[%clk 0:00:21]} 69. c5 {[%clk 0:00:21]}  Be3 {[%clk 0:00:20]} 70. c6 {[%clk 0:00:22]}  Bb6 {[%clk 0:00:20]} 71. c7 {[%clk 0:00:22]}  Bxc7+ {[%clk 0:00:19]} 72. Kxc7 {[%clk 0:00:23]}  Kf7 {[%clk 0:00:20]} 73. Kd7 {[%clk 0:00:23]}  Kg6 {[%clk 0:00:20]} 74. e6 {[%clk 0:00:23]}  Kxf6 {[%clk 0:00:19]} 75. e7 {[%clk 0:00:24]} 1-0


[Site "https://www.chess.com"]